fUST/lending_fUST_20241002
["ID","MTS","AMOUNT","RATE_DAILY","PERIOD"]
[339644909,1727798671935,200.0,0.00019462,120]
[339644910,1727798791935,200.0,0.00019553,120]
[339644958,1727799031809,-181.75338535,0.00013428,2]
[339644960,1727799031819,-4978.9647907,0.00013517,2]
[339644961,1727799031828,-1548.12884106,0.00013529,2]
[339644963,1727799031840,-544.03979864,0.00013529,2]
[339644965,1727799031850,-300.0,0.00013698,2]
[339644967,1727799031860,-500.818447,0.00013699,2]
[339644969,1727799031874,-204.8719286,0.00013699,2]
[339644971,1727799031884,-2284.5468103,0.00013699,2]
[339644973,1727799031896,-181.75338535,0.00013754,2]
[339644975,1727799031907,-250.0,0.00013854,2]
[339644977,1727799031919,-250.0,0.00013892,2]
[339644979,1727799031930,-250.0,0.0001393,2]
[339644981,1727799031942,-250.0,0.00013968,2]
[339644983,1727799031953,-250.0,0.00014006,2]
[339644984,1727799031964,-250.0,0.00014044,2]
[339644986,1727799031977,-250.0,0.00014082,2]
[339644988,1727799031986,-250.0,0.0001412,2]
[339644990,1727799031996,-250.0,0.00014158,2]
[339644992,1727799032005,-250.0,0.00014196,2]
[339644994,1727799032015,-250.0,0.00014234,2]
[339644997,1727799032026,-250.0,0.00014272,2]
[339644999,1727799032036,-250.0,0.0001431,2]
[339645001,1727799032047,-250.0,0.00014348,2]
[339645003,1727799032058,-500.818447,0.00014384,2]
[339645005,1727799032071,-250.0,0.00014386,2]
[339645007,1727799032082,-761.66098135,0.00014424,2]
[339645009,1727799032093,-250.0,0.00014424,2]
[339645011,1727799032104,-250.0,0.00014462,2]
[339645012,1727799032114,-250.0,0.000145,2]
[339645013,1727799032124,-250.0,0.00014538,2]
[339645014,1727799032135,-250.0,0.00014576,2]
[339645015,1727799032145,-420.0,0.00015067,2]
[339645016,1727799032155,-500.818447,0.00015068,2]
[339645017,1727799032165,-150.0,0.00015074,2]
[339645018,1727799032175,-7193.10270582,0.00015241,2]
[339645019,1727799032185,-3497.06820563,0.000154,2]
[339645020,1727799032195,-3497.06820559,0.00015408,2]
[339645021,1727799032205,-3497.06820559,0.00015416,2]
[339645022,1727799032215,-1003.77106611,0.00015424,2]
[339645023,1727799032227,-3497.06820559,0.00015424,2]
[339645024,1727799032237,-3621.5607088,0.00015425,2]
[339645025,1727799032247,-335.23486585,0.00015431,2]
[339645026,1727799032257,-1000.0,0.00015431,2]
[339645027,1727799032266,-3497.06820559,0.00015432,2]
[339645028,1727799032456,-3449.47688978,0.00015473,2]
[339645029,1727799032485,-3000.0,0.000155,2]
[339645030,1727799032495,-150.112233,0.000155,2]
[339645031,1727799032505,-150.112233,0.000155,2]
[339645032,1727799032516,-150.112233,0.000155,2]
[339645033,1727799032526,-150.112233,0.000155,2]
[339645034,1727799032537,-150.112233,0.000155,2]
[339645035,1727799032547,-640.67731072,0.00015512,2]
[339645036,1727799032565,-5084.9526744,0.00015512,2]
[339645037,1727799032577,-6352.0,0.00015512,2]
[339645038,1727799032589,-6391.65,0.00015512,2]
[339645039,1727799032601,-4323.83029615,0.00015512,2]
[339645040,1727799032614,-2472.61744669,0.00015512,2]
[339645058,1727799037810,-2029.75454175,0.00015408,2]
[339645060,1727799037819,-500.0,0.00015511,2]
[339645061,1727799037829,-500.0,0.00015511,2]
[339645063,1727799037838,-500.0,0.00015511,2]
[339645065,1727799037847,-500.0,0.00015511,2]
[339645067,1727799037857,-500.0,0.00015511,2]
[339645069,1727799037869,-500.0,0.00015511,2]
[339645071,1727799037879,-500.0,0.00015511,2]
[339645073,1727799037888,-500.0,0.00015511,2]
[339645075,1727799037897,-360.51123734,0.00015511,2]
[339645077,1727799037906,-500.0,0.00015511,2]
[339645079,1727799037916,-500.0,0.00015511,2]
[339645081,1727799037926,-264.2538722,0.00015511,2]
[339645083,1727799037937,-500.0,0.00015511,2]
[339645086,1727799037947,-500.0,0.00015511,2]
[339645089,1727799037956,-500.0,0.00015511,2]
[339645092,1727799037965,-500.0,0.00015511,2]
[339645095,1727799037977,-500.0,0.00015511,2]
[339645097,1727799037986,-500.0,0.00015511,2]
[339645100,1727799037996,-500.0,0.00015511,2]
[339645102,1727799038005,-500.0,0.00015511,2]
[339645103,1727799038014,-549.98913126,0.00015511,2]
[339645105,1727799038024,-500.0,0.00015511,2]
[339645107,1727799038034,-500.0,0.00015511,2]
[339645109,1727799038043,-500.0,0.00015511,2]
[339645111,1727799038054,-500.0,0.00015511,2]
[339645113,1727799038063,-500.0,0.00015511,2]
[339645114,1727799038072,-500.0,0.00015511,2]
[339645117,1727799038082,-500.0,0.00015511,2]
[339645119,1727799038092,-500.0,0.00015511,2]
[339645121,1727799038101,-500.0,0.00015511,2]
[339645123,1727799038111,-500.0,0.00015511,2]
[339645125,1727799038121,-500.0,0.00015511,2]
[339645127,1727799038131,-500.0,0.00015511,2]
[339645129,1727799038142,-500.0,0.00015511,2]
[339645131,1727799038153,-171.59399076,0.00015511,2]
[339645133,1727799038165,-328.40600924,0.00015511,2]
[339645135,1727799038174,-500.0,0.00015511,2]
[339645137,1727799038184,-500.0,0.00015511,2]
[339645139,1727799038194,-171.59399076,0.00015511,2]
[339645322,1727799039744,-12400.73140779,0.00015316,2]
[339645324,1727799039755,-328.40600924,0.00015511,2]
[339645326,1727799039765,-500.0,0.00015511,2]
[339645328,1727799039775,-500.0,0.00015511,2]
[339645330,1727799039784,-500.0,0.00015511,2]
[339645332,1727799039793,-500.0,0.00015511,2]
[339645334,1727799039803,-500.0,0.00015511,2]
[339645336,1727799039812,-500.0,0.00015511,2]
[339645337,1727799039824,-500.0,0.00015511,2]
[339645338,1727799039834,-500.0,0.00015511,2]
[339645339,1727799039843,-500.0,0.00015511,2]
[339645340,1727799039852,-429.1913765,0.00015511,2]
[339645341,1727799039867,-70.8086235,0.00015511,2]
[339645342,1727799039877,-500.0,0.00015511,2]
[339645343,1727799039886,-500.0,0.00015511,2]
[339645344,1727799039895,-500.0,0.00015511,2]
[339645345,1727799039904,-500.0,0.00015511,2]
[339645346,1727799039927,-500.0,0.00015511,2]
[339645347,1727799039940,-500.0,0.00015511,2]
[339645348,1727799039951,-500.0,0.00015511,2]
[339645349,1727799039962,-158.82606593,0.00015511,2]
[339645350,1727799039973,-500.0,0.00015511,2]
[339645352,1727799039985,-500.0,0.00015511,2]
[339645354,1727799039995,-500.0,0.00015511,2]
[339645356,1727799040005,-41588.18679814,0.00015512,2]
[339645358,1727799040015,-27897.56710775,0.00015512,2]
[339645361,1727799040029,-3327.1401526,0.00015512,2]
[339645363,1727799040041,-294.4205562,0.00015512,2]
[339645365,1727799040052,-1200.1068144,0.00015512,2]
[339645579,1727799042816,-443.30854456,0.00015512,2]
[339645580,1727799042879,-643.54860029,0.00015512,2]
[339645613,1727799045966,-5528.2053437,0.00015512,2]
[339645614,1727799046020,-270.2525765,0.00015512,2]
[339645703,1727800232092,-156.0,0.000139,2]
[339645705,1727800232102,-217.550313,0.00014151,2]
[339645707,1727800232113,-103.91716831,0.0001419,2]
[339645709,1727800232127,-62.74813569,0.0001419,2]
[339645711,1727800232137,-156.0,0.0001437,2]
[339645712,1727800232147,-91.99786431,0.00014436,2]
[339645714,1727800232159,-74.66743969,0.00014436,2]
[339645715,1727800232169,-166.665304,0.00014683,2]
[339645716,1727800232178,-166.665304,0.00014929,2]
[339645718,1727800232189,-1000.0,0.00015,8]
[339645719,1727800232198,-412.6084831,0.0001518,2]
[339645721,1727800232210,-412.6084831,0.0001518,2]
[339645723,1727800232410,-412.6084831,0.0001518,2]
[339645724,1727800232421,-412.6084831,0.0001518,2]
[339645725,1727800232431,-300.0,0.00015199,2]
[339645726,1727800232441,-300.0,0.00015199,2]
[339645727,1727800232452,-412.6084831,0.000152,2]
[339645728,1727800232462,-412.6084831,0.000152,2]
[339645729,1727800232473,-412.6084831,0.000152,2]
[339645730,1727800232482,-412.6084831,0.000152,2]
[339645731,1727800232493,-1355.13408751,0.00015234,2]
[339645763,1727800238181,-5837.96861831,0.00015234,2]
[339645765,1727800238191,-223.48991058,0.00015276,2]
[339645767,1727800238201,-179.54147111,0.00015276,2]
[339645785,1727800240166,-73.02343454,0.00015276,2]
[339645786,1727800240177,-223.48991056,0.00015281,2]
[339645787,1727800240188,-223.48991056,0.00015285,2]
[339645788,1727800240198,-2071.28578187,0.00015299,2]
[339645789,1727800240208,-500.0,0.00015373,2]
[339645790,1727800240221,-500.0,0.00015373,2]
[339645791,1727800240232,-500.0,0.00015373,2]
[339645792,1727800240242,-599.96151405,0.00015373,2]
[339645793,1727800240252,-500.53711529,0.00015373,2]
[339645794,1727800240262,-500.0,0.00015373,2]
[339645795,1727800240271,-500.0,0.00015373,2]
[339645796,1727800240281,-500.0,0.00015373,2]
[339645797,1727800240292,-501.4727739,0.00015373,2]
[339645798,1727800240302,-500.0,0.00015373,2]
[339645799,1727800240312,-173.34970353,0.00015373,2]
[339645800,1727800240324,-182.49903814,0.00015373,2]
[339645801,1727800240338,-500.0,0.00015373,2]
[339645802,1727800240347,-197.97836138,0.00015373,2]
[339645803,1727800240357,-500.0,0.00015373,2]
[339645804,1727800240367,-497.85330533,0.00015373,2]
[339645805,1727800240378,-500.0,0.00015373,2]
[339645806,1727800240388,-500.0,0.00015373,2]
[339645807,1727800240398,-500.0,0.00015373,2]
[339645808,1727800240409,-500.0,0.00015373,2]
[339645809,1727800240420,-500.0,0.00015373,2]
[339645810,1727800240429,-500.54868513,0.00015373,2]
[339645811,1727800240438,-500.0,0.00015373,2]
[339645812,1727800240448,-504.56312819,0.00015373,2]
[339645813,1727800240458,-500.0,0.00015373,2]
[339645814,1727800240470,-500.0,0.00015373,2]
[339645815,1727800240479,-508.87933556,0.00015373,2]
[339645816,1727800240488,-500.0,0.00015373,2]
[339645817,1727800240497,-8287.26168,0.00015375,2]
[339645818,1727800240509,-1353.1696945,0.00015375,2]
[339645819,1727800240519,-20591.6122264,0.00015376,2]
[339645820,1727800240529,-58606.1325544,0.00015376,2]
[339645821,1727800240539,-500.0,0.00015381,2]
[339645822,1727800240550,-372.43108419,0.00015381,2]
[339645823,1727800240559,-500.0,0.00015381,2]
[339645824,1727800240571,-500.0,0.00015381,2]
[339645825,1727800240589,-500.0,0.00015381,2]
[339645826,1727800240599,-500.0,0.00015381,2]
[339645827,1727800240608,-500.0,0.00015381,2]
[339645828,1727800240617,-329.11036196,0.00015381,2]
[339645829,1727800240629,-500.0,0.00015381,2]
[339645830,1727800240640,-500.0,0.00015381,2]
[339645831,1727800240650,-500.0,0.00015381,2]
[339645832,1727800240659,-500.0,0.00015381,2]
[339645833,1727800240668,-500.0,0.00015381,2]
[339645834,1727800240677,-500.0,0.00015381,2]
[339645835,1727800240687,-500.0,0.00015381,2]
[339645836,1727800240696,-500.0,0.00015381,2]
[339645837,1727800240705,-500.0,0.00015381,2]
[339645838,1727800240715,-500.0,0.00015381,2]
[339645839,1727800240725,-500.0,0.00015381,2]
[339645840,1727800240735,-500.0,0.00015381,2]
[339645841,1727800240744,-500.0,0.00015381,2]
[339645842,1727800240753,-500.0,0.00015381,2]
[339645843,1727800240907,-500.0,0.00015381,2]
[339645844,1727800240917,-500.0,0.00015381,2]
[339645845,1727800240926,-500.0,0.00015381,2]
[339645846,1727800240937,-500.0,0.00015381,2]
[339645847,1727800240946,-500.0,0.00015381,2]
[339645848,1727800240955,-500.0,0.00015381,2]
[339645849,1727800240965,-500.0,0.00015381,2]
[339645850,1727800240974,-500.0,0.00015381,2]
[339645851,1727800240983,-500.0,0.00015381,2]
[339645852,1727800240992,-423.24059236,0.00015381,2]
[339645853,1727800241002,-500.0,0.00015381,2]
[339645854,1727800241011,-500.0,0.00015381,2]
[339645855,1727800241020,-500.0,0.00015381,2]
[339645856,1727800241029,-500.0,0.00015381,2]
[339645857,1727800241038,-500.0,0.00015381,2]
[339645858,1727800241047,-500.0,0.00015381,2]
[339645859,1727800241056,-335.32401008,0.00015381,2]
[339645860,1727800241066,-500.0,0.00015381,2]
[339645861,1727800241075,-500.0,0.00015381,2]
[339645862,1727800241088,-500.0,0.00015381,2]
[339645863,1727800241098,-500.0,0.00015381,2]
[339645864,1727800241107,-500.0,0.00015381,2]
[339645865,1727800241115,-500.0,0.00015381,2]
[339645866,1727800241124,-500.0,0.00015381,2]
[339645867,1727800241135,-500.0,0.00015381,2]
[339645868,1727800241144,-500.0,0.00015381,2]
[339645869,1727800241154,-500.0,0.00015381,2]
[339645870,1727800241164,-500.0,0.00015381,2]
[339645871,1727800241174,-500.0,0.00015381,2]
[339645872,1727800241186,-10240.97880935,0.00015382,2]
[339645873,1727800241197,-89412.38438131,0.00015382,2]
[339645874,1727800241207,-20591.6122264,0.00015383,2]
[339645875,1727800241219,-58606.1325544,0.00015383,2]
[339645876,1727800241230,-339.57946841,0.00015384,2]
[339645877,1727800241241,-500.0,0.00015384,2]
[339645878,1727800241252,-321.93341408,0.00015384,2]
[339645879,1727800241261,-500.0,0.00015384,2]
[339645880,1727800241271,-500.0,0.00015384,2]
[339645881,1727800241280,-500.0,0.00015384,2]
[339645882,1727800241290,-313.57446957,0.00015384,2]
[339645883,1727800241300,-396.02468503,0.00015384,2]
[339645884,1727800241310,-500.0,0.00015384,2]
[339645885,1727800241320,-342.30728688,0.00015384,2]
[339645886,1727800241331,-500.0,0.00015384,2]
[339645887,1727800241341,-500.0,0.00015384,2]
[339645888,1727800241351,-500.0,0.00015384,2]
[339645889,1727800241362,-500.0,0.00015384,2]
[339645890,1727800241371,-500.0,0.00015384,2]
[339645891,1727800241381,-500.0,0.00015384,2]
[339645892,1727800241391,-500.0,0.00015384,2]
[339645893,1727800241402,-41183.2244528,0.00015386,2]
[339645894,1727800241411,-44776.86118798,0.00015386,2]
[339645936,1727800246026,-581.71,0.00010959,2]
[339645937,1727800246036,-500.0,0.00015373,2]
[339645938,1727800246046,-500.0,0.00015381,2]
[339645939,1727800246057,-500.0,0.00015381,2]
[339645940,1727800246067,-15474.53975845,0.00015386,2]
[339645941,1727800246079,-56960.86416257,0.00015386,2]
[339645942,1727800246092,-82366.4489057,0.00015386,2]
[339645943,1727800246101,-53714.23126509,0.00015386,2]
[339645944,1727800246112,-2305.29999999,0.00015386,2]
[339646132,1727801438217,-222.11,0.00010959,2]
[339646133,1727801438227,-185.09,0.00010959,2]
[339646134,1727801438237,-154.24,0.00010959,2]
[339646135,1727801438247,-153.56231416,0.00012497,2]
[339646136,1727801438258,-22.00261414,0.00012497,2]
[339646137,1727801438268,-265.8746603,0.00013196,2]
[339646138,1727801438446,-159.154156,0.00013443,2]
[339646139,1727801438455,-159.154156,0.00013618,2]
[339646140,1727801438465,-442.97354324,0.00013699,2]
[339646141,1727801438490,-481.17642576,0.00013699,2]
[339646142,1727801438499,-209.188916,0.00013699,2]
[339646143,1727801438508,-166.666666,0.00013699,2]
[339646144,1727801438518,-159.154156,0.00013793,2]
[339646145,1727801438527,-300.0,0.00013799,2]
[339646146,1727801438537,-300.0,0.00013799,2]
[339646147,1727801438546,-10000.0,0.000138,2]
[339646148,1727801438558,-500.0,0.000138,2]
[339646149,1727801438568,-150.0,0.000139,2]
[339646150,1727801438577,-159.154156,0.00013968,2]
[339646151,1727801438587,-150.0,0.0001406,2]
[339646152,1727801438596,-166.666666,0.00014099,2]
[339646153,1727801438606,-159.154156,0.00014144,2]
[339646154,1727801438616,-150.0,0.0001421,2]
[339646155,1727801438626,-150.0,0.0001437,2]
[339646156,1727801438641,-924.149969,0.00014384,2]
[339646157,1727801438651,-166.666666,0.000145,2]
[339646158,1727801438661,-150.0,0.0001452,2]
[339646159,1727801438670,-500.0,0.00014641,7]
[339646160,1727801438680,-500.0,0.00014641,7]
[339646161,1727801438689,-500.0,0.00014641,7]
[339646162,1727801438699,-500.0,0.00014641,7]
[339646163,1727801438708,-500.0,0.00014641,7]
[339646164,1727801438717,-500.0,0.00014641,7]
[339646165,1727801438726,-500.0,0.00014641,7]
[339646166,1727801438736,-500.0,0.00014641,7]
[339646167,1727801438745,-500.0,0.00014641,7]
[339646168,1727801438754,-500.0,0.00014641,7]
[339646169,1727801438763,-500.0,0.00014641,7]
[339646170,1727801438773,-500.0,0.00014641,7]
[339646171,1727801438782,-500.0,0.00014641,7]
[339646172,1727801438792,-500.0,0.00014641,7]
[339646173,1727801438801,-500.0,0.00014641,7]
[339646174,1727801438811,-500.0,0.00014641,7]
[339646175,1727801438820,-500.0,0.00014641,7]
[339646176,1727801438830,-557.95,0.00014641,7]
[339646177,1727801438839,-592.13,0.00014641,7]
[339646178,1727801438849,-500.0,0.00014641,7]
[339646179,1727801438859,-500.0,0.00014641,7]
[339646180,1727801438869,-178.19,0.00014641,7]
[339646181,1727801438883,-500.0,0.00014641,7]
[339646182,1727801438893,-244.28,0.00014641,7]
[339646183,1727801438903,-150.0,0.0001468,2]
[339646184,1727801438913,-334.93423975,0.00014805,2]
[339646185,1727801438923,-166.666666,0.00014901,2]
[339646187,1727801438933,-10984.22048565,0.00014947,2]
[339646188,1727801438944,-1353.1696945,0.00014947,2]
[339646190,1727801438954,-14954.16001332,0.00015,2]
[339646192,1727801438964,-800.0,0.00015047,2]
[339646194,1727801438974,-500.0,0.00015058,2]
[339646196,1727801438983,-924.149969,0.00015068,2]
[339646198,1727801438994,-7193.10270582,0.00015091,2]
[339646200,1727801439003,-420.0,0.00015121,2]
[339646201,1727801439012,-150.0,0.0001514,2]
[339646202,1727801439024,-1000.0,0.00015177,2]
[339646203,1727801439034,-420.0,0.00015179,2]
[339646205,1727801439044,-2071.28578187,0.00015184,2]
[339646207,1727801439054,-10350.56901275,0.00015188,2]
[339646209,1727801439064,-824.357,0.00015198,2]
[339646211,1727801439074,-150.112233,0.000152,2]
[339646213,1727801439084,-150.112233,0.000152,2]
[339646214,1727801439093,-150.112233,0.000152,2]
[339646216,1727801439104,-150.112233,0.000152,2]
[339646217,1727801439114,-372.43108419,0.00015255,2]
[339646218,1727801439124,-500.0,0.00015255,2]
[339646219,1727801439135,-500.0,0.00015255,2]
[339646221,1727801439146,-500.0,0.00015255,2]
[339646223,1727801439156,-500.0,0.00015255,2]
[339646225,1727801439166,-500.0,0.00015255,2]
[339646227,1727801439175,-500.0,0.00015255,2]
[339646228,1727801439184,-407.98202968,0.00015255,2]
[339646230,1727801439194,-500.0,0.00015255,2]
[339646232,1727801439204,-500.0,0.00015255,2]
[339646234,1727801439214,-577.0672909,0.00015255,2]
[339646236,1727801439225,-500.0,0.00015255,2]
[339646238,1727801439236,-500.0,0.00015255,2]
[339646240,1727801439246,-500.0,0.00015255,2]
[339646241,1727801439257,-500.0,0.00015255,2]
[339646243,1727801439267,-500.0,0.00015255,2]
[339646245,1727801439277,-500.0,0.00015255,2]
[339646247,1727801439287,-500.0,0.00015255,2]
[339646248,1727801439297,-500.0,0.00015255,2]
[339646250,1727801439307,-500.0,0.00015255,2]
[339646252,1727801439316,-500.0,0.00015255,2]
[339646254,1727801439327,-500.0,0.00015255,2]
[339646256,1727801439337,-500.0,0.00015255,2]
[339646257,1727801439347,-500.0,0.00015255,2]
[339646259,1727801439356,-500.0,0.00015255,2]
[339646260,1727801439365,-500.0,0.00015255,2]
[339646262,1727801439375,-500.0,0.00015255,2]
[339646264,1727801439386,-227.67498227,0.00015255,2]
[339646266,1727801439396,-500.0,0.00015255,2]
[339646268,1727801439405,-500.0,0.00015255,2]
[339646269,1727801439414,-500.0,0.00015256,2]
[339646271,1727801439424,-321.93341408,0.00015256,2]
[339646273,1727801439433,-500.0,0.00015256,2]
[339646275,1727801439444,-500.0,0.00015256,2]
[339646277,1727801439453,-500.0,0.00015256,2]
[339646278,1727801439463,-500.0,0.00015256,2]
[339646280,1727801439472,-396.02468503,0.00015256,2]
[339646282,1727801439481,-246.19218606,0.00015256,2]
[339646284,1727801439491,-500.0,0.00015256,2]
[339646286,1727801439501,-500.0,0.00015256,2]
[339646288,1727801439511,-313.57446957,0.00015256,2]
[339646290,1727801439521,-339.57946841,0.00015256,2]
[339646292,1727801439531,-500.0,0.00015256,2]
[339646294,1727801439541,-500.0,0.00015256,2]
[339646295,1727801439551,-500.0,0.00015256,2]
[339646296,1727801439561,-500.0,0.00015256,2]
[339646297,1727801439575,-500.0,0.00015256,2]
[339646298,1727801439584,-500.0,0.00015256,2]
[339646299,1727801439594,-500.0,0.00015256,2]
[339646300,1727801439603,-500.0,0.00015256,2]
[339646301,1727801439614,-500.0,0.00015256,2]
[339646302,1727801439623,-500.0,0.00015256,2]
[339646304,1727801439634,-500.0,0.00015256,2]
[339646305,1727801439645,-500.0,0.00015256,2]
[339646306,1727801439654,-500.0,0.00015256,2]
[339646307,1727801439663,-500.0,0.00015256,2]
[339646308,1727801439673,-596.11510082,0.00015256,2]
[339646309,1727801439682,-121569.036564,0.00015257,2]
[339646310,1727801439692,-37220.51565629,0.00015257,2]
[339646317,1727801440175,-500.0,0.00015255,2]
[339646318,1727801440185,-445.372,0.00015255,2]
[339646330,1727801440431,-54.628,0.00015255,2]
[339646332,1727801440441,-253.84900497,0.00015255,2]
[339646333,1727801440450,-1001.15995157,0.00015257,2]
[339646335,1727801440462,-156585.78529014,0.00015257,2]
[339646337,1727801440472,-1899.30512,0.00015258,2]
[339646339,1727801440481,-1899.30512,0.00015258,2]
[339646341,1727801440492,-1899.30512,0.00015267,2]
[339646343,1727801440502,-1899.30512,0.00015267,2]
[339646344,1727801440511,-21128.9034218,0.00015267,2]
[339646346,1727801440521,-40523.0121882,0.00015267,2]
[339646348,1727801440531,-64935.8202994,0.00015267,2]
[339646350,1727801440541,-89686.73359425,0.00015267,2]
[339646352,1727801440552,-29588.12096911,0.00015268,2]
[339646417,1727801443213,-500.0,0.00010959,2]
[339646484,1727801446161,-271.23,0.00010959,2]
[339646486,1727801446171,-1348.83411088,0.00015168,2]
[339646488,1727801446181,-140.35736042,0.00015268,2]
[339646491,1727801446193,-2162.53910812,0.00015268,2]
[339646494,1727801446204,-2135.67124547,0.00015268,2]
[339646495,1727801446218,-6496.32350508,0.00015268,2]
[339646496,1727801446228,-1119.52118755,0.00015268,2]
[339646497,1727801446240,-3990.06291543,0.00015268,2]
[339646498,1727801446252,-4291.85401977,0.00015268,2]
[339646499,1727801446263,-4643.75024305,0.00015268,2]
[339648302,1727802632507,-166.666666,0.00013699,2]
[339648303,1727802632516,-1474.8405939,0.00013798,2]
[339648304,1727802632527,-151.0,0.000139,2]
[339648305,1727802632537,-151.0,0.0001413,2]
[339648306,1727802632546,-151.0,0.0001437,2]
[339648307,1727802632556,-153.0,0.00014578,2]
[339648308,1727802632567,-0.52321413,0.000146,2]
[339648324,1727802638358,-150.47678587,0.000146,2]
[339648325,1727802638368,-153.0,0.000146,2]
[339648326,1727802638378,-153.0,0.000146,2]
[339648327,1727802638387,-412.6084831,0.00014875,2]
[339648328,1727802638397,-300.0,0.00014942,2]
[339648329,1727802638406,-300.0,0.00014942,2]
[339648330,1727802638416,-2506.19654362,0.00014943,2]
[339648331,1727802638582,-4686.9061622,0.00014943,2]
[339648332,1727802638591,-1600.0,0.00015,5]
[339648333,1727802638600,-446.97982112,0.00015036,2]
[339648334,1727802638610,-600.0,0.00015047,2]
[339648335,1727802638619,-500.0,0.00015058,2]
[339648336,1727802638629,-1213.95069972,0.00015073,2]
[339648337,1727802638638,-500.0,0.000151,2]
[339648338,1727802638647,-500.0,0.000151,2]
[339648339,1727802638657,-304.83030238,0.000151,2]
[339648340,1727802638668,-902.11312967,0.00015122,2]
[339648341,1727802638677,-38340.15867654,0.00015122,2]
[339648342,1727802638689,-500.0,0.00015135,2]
[339648343,1727802638698,-500.0,0.00015135,2]
[339648344,1727802638708,-500.0,0.00015135,2]
[339648345,1727802638716,-594.01921288,0.00015135,2]
[339648346,1727802638725,-500.0,0.00015135,2]
[339648347,1727802638735,-500.0,0.00015135,2]
[339648348,1727802638744,-500.0,0.00015135,2]
[339648349,1727802638754,-500.0,0.00015135,2]
[339648350,1727802638763,-500.0,0.00015135,2]
[339648351,1727802638773,-500.0,0.00015135,2]
[339648352,1727802638783,-500.0,0.00015135,2]
[339648353,1727802638792,-500.0,0.00015135,2]
[339648354,1727802638802,-500.0,0.00015135,2]
[339648355,1727802638811,-500.0,0.00015135,2]
[339648356,1727802638821,-500.0,0.00015135,2]
[339648357,1727802638830,-500.0,0.00015135,2]
[339648358,1727802638839,-500.0,0.00015135,2]
[339648359,1727802638848,-500.0,0.00015135,2]
[339648360,1727802638858,-500.0,0.00015135,2]
[339648361,1727802638867,-500.0,0.00015135,2]
[339648362,1727802638876,-500.0,0.00015135,2]
[339648363,1727802638886,-500.0,0.00015135,2]
[339648364,1727802638896,-500.0,0.00015135,2]
[339648365,1727802638905,-500.0,0.00015135,2]
[339648366,1727802638915,-500.0,0.00015135,2]
[339648367,1727802638924,-500.0,0.00015135,2]
[339648368,1727802638935,-500.0,0.00015135,2]
[339648369,1727802638945,-500.0,0.00015135,2]
[339648370,1727802638957,-500.0,0.00015135,2]
[339648371,1727802638969,-500.0,0.00015135,2]
[339648372,1727802638979,-500.0,0.00015135,2]
[339648373,1727802638989,-500.0,0.00015135,2]
[339648374,1727802638998,-500.0,0.00015135,2]
[339648375,1727802639008,-500.0,0.00015135,2]
[339648376,1727802639017,-500.0,0.00015135,2]
[339648377,1727802639028,-500.0,0.00015135,2]
[339648378,1727802639038,-500.0,0.00015135,2]
[339648379,1727802639048,-500.0,0.00015135,2]
[339648380,1727802639057,-500.0,0.00015135,2]
[339648381,1727802639067,-500.0,0.00015135,2]
[339648382,1727802639077,-500.0,0.00015135,2]
[339648383,1727802639086,-500.0,0.00015135,2]
[339648384,1727802639095,-500.0,0.00015135,2]